bitfinex/quotes_BTCUSD_20241222
["timestamp","ask_amount","ask_price","bid_price","bid_amount"]
[1734854467272,8.56e-05,96309.0,96308.0,0.3159754]
[1734854468291,8.56e-05,96309.0,96308.0,0.1083084]
[1734854468496,8.56e-05,96309.0,96308.0,0.1073084]
[1734854468691,8.56e-05,96309.0,96308.0,0.1083084]
[1734854469308,8.56e-05,96309.0,96308.0,0.64362886]
[1734854469509,8.56e-05,96309.0,96308.0,0.63762886]
[1734854470623,8.56e-05,96309.0,96308.0,0.64062886]
[1734854470861,8.56e-05,96309.0,96308.0,0.63762886]
[1734854471068,8.56e-05,96309.0,96308.0,0.79262886]
[1734854471484,8.56e-05,96309.0,96308.0,0.78762886]
[1734854472273,8.56e-05,96309.0,96308.0,0.78862886]
[1734854472673,8.56e-05,96309.0,96308.0,0.78762886]
[1734854473210,8.56e-05,96309.0,96308.0,0.79362886]
[1734854475998,8.56e-05,96309.0,96308.0,0.78762886]
[1734854476202,8.56e-05,96309.0,96308.0,0.79262886]
[1734854476414,8.56e-05,96309.0,96308.0,0.79362886]
[1734854476775,8.56e-05,96309.0,96308.0,0.78862886]
[1734854477006,8.56e-05,96309.0,96308.0,0.79262886]
[1734854477345,8.56e-05,96309.0,96308.0,0.79362886]
[1734854479181,8.56e-05,96309.0,96308.0,0.79262886]
[1734854479586,8.56e-05,96309.0,96308.0,0.78762886]
[1734854480016,8.56e-05,96309.0,96308.0,0.79162886]
[1734854480250,8.56e-05,96309.0,96308.0,0.78762886]
[1734854480607,8.56e-05,96309.0,96308.0,0.79162886]
[1734854480830,8.56e-05,96309.0,96308.0,0.78762886]
[1734854481033,8.56e-05,96309.0,96308.0,0.79162886]
[1734854486545,0.0821856,96309.0,96308.0,0.54032046]
[1734854486758,0.0821856,96309.0,96308.0,0.004]
[1734854487009,0.207686,96299.0,96290.0,0.53632046]
[1734854487213,0.207679,96303.0,96290.0,0.53632046]
[1734854487852,0.415358,96303.0,96290.0,0.53632046]
[1734854488062,0.207679,96303.0,96290.0,0.53632046]
[1734854488292,0.0192668,96302.0,96290.0,0.53632046]
[1734854488725,0.2269488,96301.0,96290.0,0.53632046]
[1734854489143,0.0192668,96300.0,96290.0,0.53632046]
[1734854489903,0.0192668,96299.0,96290.0,0.53632046]
[1734854491520,0.0192668,96299.0,96298.0,0.00133454]
[1734854492851,0.0192668,96299.0,96298.0,0.00033454]
[1734854493051,0.0162668,96299.0,96298.0,0.00133454]
[1734854493860,0.0162668,96299.0,96298.0,0.00033454]
[1734854495891,0.0162668,96299.0,96298.0,0.00133454]
[1734854496079,0.0162668,96299.0,96298.0,0.00033454]
[1734854496803,0.023,96300.0,96298.0,0.00033454]
[1734854497021,0.207686,96299.0,96298.0,0.00033454]
[1734854500379,0.2077716,96299.0,96298.0,0.00033454]
[1734854505881,0.22701943,96299.0,96298.0,0.00033454]
[1734854506256,0.2077716,96299.0,96298.0,0.00033454]
[1734854507024,0.22701943,96299.0,96298.0,0.00033454]
[1734854507287,0.2077716,96299.0,96298.0,0.00033454]
[1734854507754,0.22701943,96299.0,96298.0,0.00033454]
[1734854510367,0.01933343,96299.0,96298.0,0.00033454]
[1734854510574,0.01933343,96299.0,96298.0,0.10164294]
[1734854510781,8.56e-05,96299.0,96298.0,0.30933094]
[1734854510987,8.56e-05,96299.0,96298.0,0.46968183]
[1734854511189,8.56e-05,96299.0,96298.0,0.54798183]
[1734854513035,8.56e-05,96299.0,96298.0,0.55698183]
[1734854513825,8.56e-05,96299.0,96298.0,0.55098183]
[1734854514182,8.56e-05,96299.0,96298.0,0.55998183]
[1734854515906,8.56e-05,96299.0,96298.0,1.10020229]
[1734854517089,8.56e-05,96299.0,96298.0,1.09720229]
[1734854517492,8.56e-05,96299.0,96298.0,1.09220229]
[1734854518939,8.56e-05,96299.0,96298.0,1.10120229]
[1734854519968,8.56e-05,96299.0,96298.0,1.19960229]
[1734854530977,8.56e-05,96299.0,96298.0,1.29960229]
[1734854531122,8.56e-05,96299.0,96298.0,1.29560229]
[1734854532197,8.56e-05,96299.0,96298.0,1.28660229]
[1734854532397,8.56e-05,96299.0,96298.0,1.29060229]
[1734854532611,8.56e-05,96299.0,96298.0,1.29160229]
[1734854532869,8.56e-05,96299.0,96298.0,1.29060229]
[1734854533326,8.56e-05,96309.0,96308.0,0.307667]
[1734854533538,0.0002712,96329.0,96328.0,0.207623]
[1734854533738,0.0002712,96329.0,96328.0,0.3089314]
[1734854534787,0.0002712,96329.0,96328.0,0.4589314]
[1734854534942,0.0002712,96329.0,96328.0,0.4609314]
[1734854535690,0.0002712,96329.0,96328.0,0.5433314]
[1734854536043,0.0002712,96329.0,96328.0,0.5513314]
[1734854536236,0.0002712,96329.0,96328.0,1.1017697]
[1734854536790,0.0002712,96329.0,96328.0,1.0937697]
[1734854536988,0.0002712,96329.0,96328.0,1.0917697]
[1734854537194,0.0002712,96329.0,96328.0,1.1007697]
[1734854537415,0.0002712,96329.0,96328.0,1.2027697]
[1734854537841,0.0002712,96329.0,96328.0,1.2007697]
[1734854538442,0.0002712,96329.0,96328.0,1.1007697]
[1734854538649,0.0002712,96329.0,96328.0,1.03903478]
[1734854538862,0.0002712,96329.0,96328.0,1.0093697]
[1734854539666,0.0002712,96329.0,96328.0,1.0113697]
[1734854540073,0.0002712,96329.0,96328.0,1.0093697]
[1734854540862,0.0789848,96348.0,96341.0,0.207595]
[1734854541056,0.07952971,96348.0,96341.0,0.207595]
[1734854541499,0.07952971,96348.0,96342.0,0.207593]
[1734854541909,0.07952971,96348.0,96342.0,0.415186]
[1734854542129,0.00054491,96348.0,96342.0,0.5164944]
[1734854542330,0.00054491,96348.0,96344.0,0.207589]
[1734854542518,0.00054491,96348.0,96346.0,0.207585]
[1734854542723,0.00054491,96348.0,96346.0,0.3088934]
[1734854544683,0.00054491,96348.0,96346.0,0.3118934]
[1734854545136,0.00054491,96348.0,96346.0,0.3198934]
[1734854546006,0.1008,96347.0,96346.0,0.011]
[1734854546436,0.12006437,96347.0,96346.0,0.011]
[1734854546632,0.09706437,96347.0,96346.0,0.011]
[1734854547040,0.0778,96347.0,96346.0,0.003]
[1734854547580,0.00054491,96348.0,96347.0,0.207583]
[1734854548157,0.00054491,96348.0,96342.0,0.415185]
[1734854548389,0.00054491,96348.0,96344.0,0.207589]
[1734854548593,0.00063061,96348.0,96345.0,0.1013084]
[1734854548894,0.00063061,96348.0,96346.0,0.207585]
[1734854549093,0.00063061,96348.0,96346.0,0.3088934]
[1734854549631,0.00063061,96348.0,96347.0,0.002]
[1734854549832,0.00063061,96348.0,96346.0,0.3088934]
[1734854550189,0.00063061,96348.0,96346.0,0.3148934]
[1734854551473,0.00063061,96348.0,96346.0,0.3088934]
[1734854551697,0.00063061,96348.0,96347.0,0.006]
[1734854552061,0.00063061,96348.0,96346.0,0.3088934]
[1734854552261,0.00063061,96348.0,96346.0,0.3148934]
[1734854552508,0.00063061,96348.0,96346.0,0.3158934]
[1734854552711,0.00063061,96348.0,96346.0,0.3098934]
[1734854553070,0.00063061,96348.0,96347.0,0.006]
[1734854553269,0.00063061,96348.0,96346.0,0.3098934]
[1734854553821,0.00063061,96348.0,96346.0,0.3088934]
[1734854554019,0.00063061,96348.0,96346.0,0.3098934]
[1734854554220,0.00063061,96348.0,96347.0,0.1013084]
[1734854554853,0.00063061,96348.0,96347.0,0.64152886]
[1734854555847,0.00063061,96348.0,96347.0,0.64852886]
[1734854556279,0.00063061,96348.0,96347.0,0.79152886]
[1734854556482,0.00063061,96348.0,96347.0,0.79752886]
[1734854556858,0.00063061,96348.0,96347.0,0.79352886]
[1734854557063,0.00063061,96348.0,96347.0,0.80152886]
[1734854558376,0.00063061,96348.0,96347.0,0.81206716]
[1734854558904,0.00063061,96348.0,96347.0,0.80206716]
[1734854559331,0.00063061,96348.0,96347.0,0.81206716]
[1734854559531,0.00063061,96348.0,96347.0,0.80406716]
[1734854559971,0.00063061,96348.0,96347.0,0.81206716]
[1734854560347,0.00063061,96348.0,96347.0,0.80406716]
[1734854560557,0.00063061,96348.0,96347.0,0.81306716]
[1734854560920,0.00063061,96348.0,96347.0,0.80206716]
[1734854562231,0.00063061,96348.0,96347.0,0.80506716]
[1734854562437,0.00063061,96348.0,96347.0,0.81406716]
[1734854562641,0.00063061,96348.0,96347.0,0.80506716]
[1734854562850,0.00063061,96348.0,96347.0,0.88496716]
[1734854563059,0.00063061,96348.0,96347.0,0.89696716]
[1734854563268,0.00063061,96348.0,96347.0,0.88796716]
[1734854563688,0.00063061,96348.0,96347.0,0.89396716]
[1734854563894,0.00063061,96348.0,96347.0,0.88796716]
[1734854564296,0.00063061,96348.0,96347.0,0.89696716]
[1734854565497,0.00063061,96348.0,96347.0,0.88496716]
[1734854565849,0.00063061,96348.0,96347.0,0.88896716]
[1734854566057,0.00063061,96348.0,96347.0,0.88496716]
[1734854566479,0.00063061,96348.0,96347.0,0.89396716]
[1734854567260,0.00063061,96348.0,96347.0,0.91731521]
[1734854567601,0.00063061,96348.0,96347.0,0.92231521]
[1734854568122,8.56e-05,96367.0,96354.0,0.1]
[1734854568331,0.1379727,96392.0,96347.0,0.34569475]
[1734854568332,0.0918962,96390.0,96384.0,0.1]
[1734854568535,0.07158294,96390.0,96389.0,0.97361265]
[1734854568825,8.561e-05,96398.0,96397.0,0.457475]
[1734854568996,8.561e-05,96398.0,96397.0,0.5587834]
[1734854569387,8.561e-05,96398.0,96397.0,1.19818765]
[1734854569583,8.561e-05,96398.0,96397.0,1.09818765]
[1734854569786,8.561e-05,96398.0,96397.0,0.99818765]
[1734854570444,0.207389,96437.0,96408.0,0.357451]
[1734854570665,0.207389,96437.0,96408.0,0.4587594]
[1734854573168,0.207389,96437.0,96408.0,0.4607594]
[1734854573374,0.207402,96431.0,96408.0,0.4677594]
[1734854573695,0.207402,96431.0,96408.0,0.4657594]
[1734854573907,0.0001856,96409.0,96408.0,0.4657594]
[1734854574993,0.0001856,96409.0,96408.0,0.4677594]
[1734854575460,0.0001856,96409.0,96408.0,0.1103084]
[1734854575659,0.0001856,96409.0,96408.0,0.009]
[1734854576433,0.0001856,96409.0,96408.0,0.1103084]
[1734854576878,0.0001856,96409.0,96408.0,0.1083084]
[1734854577070,0.0001856,96409.0,96408.0,0.10234554]
[1734854577297,0.0001856,96409.0,96408.0,0.10534554]
[1734854577691,0.0001856,96409.0,96408.0,0.10234554]
[1734854578026,0.0001856,96409.0,96408.0,0.26134554]
[1734854578230,0.0001856,96409.0,96408.0,0.2603084]
[1734854578849,0.0001856,96409.0,96408.0,0.80171265]
[1734854579259,0.0001856,96409.0,96408.0,0.79971265]
[1734854579571,0.0001856,96409.0,96408.0,0.80271265]
[1734854587985,0.0001856,96409.0,96408.0,0.2633084]
[1734854588198,6e-07,96409.0,96408.0,0.93101265]
[1734854588434,0.0817,96446.0,96425.0,0.357415]
[1734854588650,0.00024894,96426.0,96425.0,0.4587234]
[1734854589448,0.00024894,96426.0,96425.0,0.357415]
[1734854590494,0.00024894,96426.0,96425.0,0.366415]
[1734854591051,0.00024894,96426.0,96425.0,0.357415]
[1734854591651,0.00024894,96426.0,96425.0,0.360415]
[1734854592244,0.00024894,96426.0,96425.0,0.357415]
[1734854592467,0.00024894,96426.0,96425.0,0.366415]
[1734854592685,0.00024894,96426.0,96425.0,0.360415]
[1734854593131,0.00024894,96426.0,96425.0,0.369415]
[1734854593340,0.00024894,96426.0,96425.0,0.357415]
[1734854593746,0.00024894,96426.0,96425.0,0.366415]
[1734854593986,0.00024894,96426.0,96425.0,0.357415]
[1734854594379,0.00024894,96426.0,96425.0,0.366415]
[1734854595211,0.00024894,96426.0,96425.0,0.369415]
[1734854595797,0.00024894,96426.0,96425.0,0.366415]
[1734854595946,0.00024894,96426.0,96425.0,0.369415]
[1734854596143,0.00024894,96426.0,96425.0,0.219415]
[1734854598230,0.00024894,96426.0,96425.0,0.216415]
[1734854598628,0.00024894,96426.0,96425.0,0.210415]
[1734854599036,0.00024894,96426.0,96425.0,0.219415]
[1734854600791,0.07794894,96426.0,96425.0,0.012]
[1734854601616,0.07794894,96426.0,96425.0,0.009]
[1734854601821,0.07794894,96426.0,96410.0,0.207445]
[1734854602025,0.07794894,96426.0,96425.0,0.007]
[1734854602402,0.07794894,96426.0,96425.0,0.003]
[1734854602603,0.07794894,96426.0,96425.0,0.005]
[1734854602830,0.07794894,96426.0,96425.0,0.006]
[1734854603039,0.07794894,96426.0,96425.0,0.001]
[1734854603248,0.07794894,96426.0,96425.0,0.006]
[1734854603456,0.30225734,96426.0,96425.0,0.006]
[1734854603660,0.30225734,96426.0,96425.0,0.001]
[1734854604480,0.10094894,96426.0,96425.0,0.001]
[1734854605633,0.10094894,96426.0,96425.0,0.006]
[1734854605839,0.10094894,96426.0,96425.0,0.001]
[1734854606048,0.023,96425.0,96405.0,0.207457]
[1734854606263,0.023,96423.0,96405.0,0.207457]
[1734854606471,0.023,96423.0,96405.0,0.1013084]
[1734854606706,0.00024894,96426.0,96411.0,0.1978]
[1734854606912,0.00024894,96426.0,96425.0,0.001]
[1734854607549,0.00024894,96426.0,96425.0,0.208415]
[1734854608170,0.00024894,96426.0,96425.0,0.207415]
[1734854610575,0.00024894,96426.0,96425.0,0.209415]
[1734854611386,0.00024894,96426.0,96425.0,0.216415]
[1734854611750,0.00024894,96426.0,96425.0,0.209415]
[1734854612188,0.00024894,96426.0,96425.0,0.216415]
[1734854612319,0.00024894,96426.0,96425.0,0.209415]
[1734854612520,0.00024894,96426.0,96425.0,0.216415]
[1734854613168,0.00024894,96426.0,96425.0,0.209415]
[1734854613363,0.00024894,96426.0,96425.0,0.214415]
[1734854613684,0.00024894,96426.0,96425.0,0.216415]
[1734854614111,0.00024894,96426.0,96425.0,0.214415]
[1734854614566,0.00024894,96426.0,96425.0,0.209415]
[1734854614883,0.00024894,96426.0,96425.0,0.216415]
[1734854615348,0.00024894,96426.0,96425.0,0.209415]
[1734854615563,0.00024894,96426.0,96425.0,0.216415]
[1734854615782,0.00024894,96426.0,96425.0,0.209415]
[1734854616183,0.00024894,96426.0,96425.0,0.009]
[1734854616395,0.00024894,96426.0,96425.0,0.002]
[1734854616832,0.00024894,96426.0,96417.0,0.20743]
[1734854617062,0.00024894,96426.0,96425.0,0.002]
[1734854617514,0.00024894,96426.0,96417.0,0.41486]
[1734854617723,0.07574894,96426.0,96425.0,0.007]
[1734854617926,0.07574894,96426.0,96425.0,0.009]
[1734854618127,0.09874894,96426.0,96425.0,0.002]
[1734854618344,0.023,96425.0,96409.0,0.0001712]
[1734854618551,0.230415,96425.0,96410.0,0.207447]
[1734854618968,0.230415,96425.0,96417.0,0.002]
[1734854619551,0.00024894,96426.0,96417.0,0.002]
[1734854620106,0.00024894,96426.0,96425.0,0.006]
[1734854621757,0.00024894,96426.0,96410.0,0.414894]
[1734854622007,0.00024894,96426.0,96417.0,0.002]
[1734854622358,0.00024894,96426.0,96415.0,0.207435]
[1734854622586,0.00024894,96426.0,96425.0,0.004]
[1734854622988,0.00024894,96426.0,96410.0,0.414894]
[1734854623582,0.00024894,96426.0,96417.0,0.004]
[1734854624878,0.00024894,96426.0,96410.0,0.414894]
[1734854625085,0.00024894,96426.0,96415.0,0.207435]
[1734854625293,0.207415,96425.0,96410.0,0.211447]
[1734854625496,0.023,96424.0,96409.0,0.0001712]
[1734854625700,0.023,96424.0,96417.0,0.004]
[1734854625941,0.207419,96423.0,96417.0,0.004]
[1734854626155,0.207419,96423.0,96410.0,0.207447]
[1734854626305,0.207419,96423.0,96415.0,0.005]
[1734854626505,0.00024894,96426.0,96422.0,0.207421]
[1734854628352,0.00024894,96426.0,96422.0,0.414842]
[1734854628819,0.00024894,96426.0,96422.0,0.418842]
[1734854629019,0.00024894,96426.0,96422.0,0.414842]
[1734854629383,0.00024894,96426.0,96422.0,0.421842]
[1734854629570,0.00024894,96426.0,96422.0,0.414842]
[1734854630174,0.00024894,96426.0,96422.0,0.214421]
[1734854631143,0.00024894,96426.0,96422.0,0.421842]
[1734854631720,0.00024894,96426.0,96422.0,0.423842]
[1734854634240,0.00024894,96426.0,96422.0,0.416842]
[1734854634500,0.00024894,96426.0,96422.0,0.414842]
[1734854634736,0.00024894,96426.0,96422.0,0.422842]
[1734854634852,0.00024894,96426.0,96422.0,0.416842]
[1734854635049,0.00024894,96426.0,96422.0,0.425842]
[1734854635267,0.00024894,96426.0,96422.0,0.423842]
[1734854635641,0.00024894,96426.0,96422.0,0.417842]
[1734854636100,0.00024894,96426.0,96422.0,0.426842]
[1734854636260,0.00024894,96426.0,96422.0,0.417842]
[1734854637292,0.00024894,96426.0,96422.0,0.414842]
[1734854637694,0.00024894,96426.0,96422.0,0.426842]
[1734854637902,0.00024894,96426.0,96422.0,0.417842]
[1734854638098,0.00024894,96426.0,96422.0,0.423842]
[1734854638505,0.00024894,96426.0,96422.0,0.426842]
[1734854638704,0.00024894,96426.0,96422.0,0.417842]
[1734854638909,0.00024894,96426.0,96422.0,0.414842]
[1734854639111,0.00024894,96426.0,96422.0,0.423842]
[1734854639442,0.00024894,96426.0,96422.0,0.417842]
[1734854640699,0.00024894,96426.0,96422.0,0.216421]
[1734854640921,0.00024894,96426.0,96422.0,0.207421]
[1734854641123,0.00024894,96426.0,96422.0,0.209421]
[1734854641324,0.00024894,96426.0,96422.0,0.416842]
[1734854641540,0.00024894,96426.0,96422.0,0.425842]
[1734854641930,0.00024894,96426.0,96422.0,0.416842]
[1734854642125,0.00024894,96426.0,96422.0,0.414842]
[1734854642327,0.00024894,96426.0,96422.0,0.417842]
[1734854642509,0.00024894,96426.0,96424.0,0.207417]
[1734854642857,0.00024894,96426.0,96424.0,0.3087254]
[1734854643065,0.00024894,96426.0,96425.0,0.2513084]
[1734854643257,0.00024894,96426.0,96425.0,0.3278084]
[1734854645000,0.00024894,96426.0,96425.0,0.3308084]
[1734854645216,0.00024894,96426.0,96425.0,0.3398084]
[1734854645409,0.023,96457.0,96440.0,0.20738]
[1734854645612,0.00054437,96456.0,96440.0,0.20738]
[1734854645809,0.023,96454.0,96440.0,0.20738]
[1734854646917,0.02354437,96456.0,96440.0,0.20738]
[1734854647119,0.02354437,96456.0,96434.0,0.0498]
[1734854647120,0.00054437,96456.0,96452.0,0.207355]
[1734854647316,0.00054437,96456.0,96454.0,0.207352]
[1734854647518,0.00054437,96456.0,96454.0,0.3086604]
[1734854647751,0.00054437,96456.0,96455.0,0.1013084]
[1734854648115,0.00054437,96456.0,96455.0,0.2513084]
[1734854648286,0.00054437,96456.0,96455.0,0.3278084]
[1734854648496,0.00054437,96456.0,96455.0,0.86721265]
[1734854649323,0.00054437,96456.0,96455.0,0.87321265]
[1734854649527,0.00054437,96456.0,96455.0,0.86721265]
[1734854649909,0.00054437,96456.0,96455.0,0.91701265]
[1734854650489,0.00054437,96456.0,96455.0,0.91801265]
[1734854650876,0.00054437,96456.0,96455.0,0.91701265]
[1734854651543,0.00054437,96456.0,96455.0,0.91801265]
[1734854651895,0.00054437,96456.0,96455.0,0.91701265]
[1734854652066,0.00054437,96456.0,96455.0,0.94054364]
[1734854652454,0.00054437,96456.0,96455.0,0.93754364]
[1734854652690,0.00054437,96456.0,96455.0,0.93954364]
[1734854653957,0.00054437,96456.0,96455.0,0.93754364]
[1734854654354,0.00054437,96456.0,96455.0,0.94054364]
[1734854655178,0.00062997,96456.0,96455.0,0.94054364]
[1734854656600,0.0001,96469.0,96468.0,0.436922]
[1734854656896,0.00026324,96469.0,96468.0,0.5382304]
[1734854658507,0.00026324,96469.0,96468.0,0.5422304]
[1734854659145,0.00026324,96469.0,96468.0,0.5382304]
[1734854659620,0.00026324,96469.0,96468.0,0.5442304]
[1734854660280,0.00026324,96469.0,96468.0,0.3146304]
[1734854660469,0.00026324,96469.0,96468.0,0.006]
[1734854660673,0.00026324,96469.0,96468.0,0.1073084]
[1734854660890,0.00026324,96469.0,96468.0,0.2573084]
[1734854661384,0.00026324,96469.0,96468.0,0.2513084]
[1734854661588,0.00026324,96469.0,96468.0,0.2613084]
[1734854661981,0.00026324,96469.0,96468.0,0.2523084]
[1734854662185,0.00026324,96469.0,96468.0,0.2553084]
[1734854663998,0.00026324,96469.0,96468.0,0.2513084]
[1734854664199,0.00026324,96469.0,96468.0,0.005]
[1734854664595,0.00026324,96469.0,96464.0,0.207331]
[1734854665518,0.00026324,96469.0,96468.0,0.004]
[1734854665740,0.00026324,96469.0,96465.0,0.207327]
[1734854665907,0.00026324,96469.0,96468.0,0.1013084]
[1734854666408,0.00026324,96469.0,96468.0,0.3745084]
[1734854666848,0.00026324,96469.0,96468.0,0.3755084]
[1734854667609,0.00026324,96469.0,96468.0,0.3785084]
[1734854668002,0.00026324,96469.0,96468.0,0.39541366]
[1734854668199,0.00026324,96469.0,96468.0,0.39941366]
[1734854668401,0.00026324,96469.0,96468.0,0.40341366]
[1734854668787,0.00026324,96469.0,96468.0,0.39941366]
[1734854669598,0.00026324,96469.0,96468.0,0.32151366]
[1734854669855,0.00026324,96469.0,96468.0,0.27621366]
[1734854670237,0.00026324,96469.0,96468.0,0.1053084]
[1734854671296,0.00026324,96469.0,96468.0,0.12160863]
[1734854671472,0.00026324,96469.0,96468.0,0.12960863]
[1734854671675,0.00026324,96469.0,96468.0,0.1093084]
[1734854671878,0.00026324,96469.0,96468.0,0.1013084]
[1734854672199,0.00026324,96469.0,96468.0,0.1103084]
[1734854672618,0.00026324,96469.0,96468.0,0.009]
[1734854672846,0.00026324,96469.0,96468.0,0.012]
[1734854673189,0.00026324,96469.0,96468.0,0.009]
[1734854673390,0.00026324,96469.0,96465.0,0.02126513]
[1734854673592,0.00026324,96469.0,96468.0,0.001]
[1734854674050,0.00026324,96469.0,96456.0,0.207348]
[1734854674251,0.00026324,96469.0,96468.0,0.009]
[1734854674666,0.00026324,96469.0,96457.0,0.1013084]
[1734854674667,0.00026324,96469.0,96458.0,0.207344]
[1734854674911,0.00026324,96469.0,96458.0,0.3086524]
[1734854675089,0.00026324,96469.0,96468.0,0.009]
[1734854675518,0.08066324,96469.0,96468.0,0.009]
[1734854675855,0.10366324,96469.0,96468.0,0.009]
[1734854676164,0.10366324,96469.0,96468.0,0.012]
[1734854676771,0.10366324,96469.0,96468.0,0.018]
[1734854677055,0.023,96467.0,96455.0,0.000171]
[1734854677267,0.10366324,96469.0,96455.0,0.000171]
[1734854677268,0.00026324,96469.0,96455.0,0.000171]
[1734854677488,0.00026324,96469.0,96455.0,0.1014794]
[1734854678075,0.00026324,96469.0,96456.0,0.0489]
[1734854678452,0.00026324,96469.0,96466.0,0.207325]
[1734854678981,0.023,96468.0,96466.0,0.207325]
[1734854679940,0.00034874,96469.0,96468.0,0.207322]
[1734854680162,0.00034874,96469.0,96468.0,0.3086304]
[1734854680979,0.00034874,96469.0,96468.0,0.207322]
[1734854681202,0.00034874,96469.0,96468.0,0.211322]
[1734854681498,0.00034874,96469.0,96468.0,0.207322]
[1734854682080,0.00034874,96469.0,96461.0,0.207336]
[1734854682278,0.00034874,96469.0,96456.0,0.256246]
[1734854682279,0.00034874,96469.0,96468.0,0.002]
[1734854682687,0.02334874,96469.0,96455.0,0.150171]
[1734854682873,0.02334874,96469.0,96468.0,0.006]
[1734854683074,0.02334874,96469.0,96468.0,0.002]
[1734854683475,0.02334874,96469.0,96468.0,0.006]
[1734854683721,0.02334874,96469.0,96455.0,0.150171]
[1734854683931,0.023,96462.0,96455.0,0.001171]
[1734854684096,0.207337,96461.0,96455.0,0.001171]
[1734854684298,0.023,96460.0,96455.0,0.001171]
[1734854684505,0.023,96456.0,96455.0,0.001171]
[1734854685711,0.023,96456.0,96455.0,0.000171]
[1734854686134,0.023,96456.0,96455.0,0.007171]
[1734854686692,0.023,96456.0,96455.0,0.000171]
[1734854686822,0.023,96462.0,96455.0,0.002171]
[1734854687026,0.00034874,96469.0,96455.0,0.000171]
[1734854688581,0.00034874,96469.0,96456.0,0.207348]
[1734854688853,0.00034874,96469.0,96456.0,0.414696]
[1734854689033,0.001,96462.0,96456.0,0.414696]
[1734854689207,0.001,96462.0,96456.0,0.5160044]
[1734854689416,0.001,96462.0,96458.0,0.207344]
[1734854689616,0.00034874,96469.0,96458.0,0.207344]
[1734854689815,0.00034874,96469.0,96458.0,0.414688]
[1734854690189,0.00134874,96469.0,96458.0,0.414688]
[1734854690471,0.023,96468.0,96457.0,0.0454]
[1734854690671,0.00134874,96469.0,96464.0,0.207331]
[1734854690672,0.00034874,96469.0,96464.0,0.207331]
[1734854691013,0.00134874,96469.0,96464.0,0.414662]
[1734854692422,0.00034874,96469.0,96464.0,0.414662]
[1734854693241,0.00034874,96469.0,96464.0,0.418662]
[1734854694471,0.00034874,96469.0,96464.0,0.419662]
[1734854694712,0.00034874,96469.0,96467.0,0.0794]
[1734854694971,0.00034874,96469.0,96468.0,0.1013084]
[1734854695615,0.00034874,96469.0,96468.0,0.3086304]
[1734854695827,0.00034874,96469.0,96468.0,0.4586304]
[1734854696655,0.00034874,96469.0,96468.0,0.4646304]
[1734854696860,0.00034874,96469.0,96468.0,0.4666304]
[1734854701081,0.00034874,96469.0,96468.0,0.008]
[1734854702968,0.00034874,96469.0,96466.0,0.207326]
[1734854703353,0.00034874,96469.0,96468.0,0.001]
[1734854703550,0.00034874,96469.0,96468.0,0.005]
[1734854703758,0.00034874,96469.0,96468.0,0.004]
[1734854704256,0.00034874,96469.0,96468.0,0.1867084]
[1734854704462,0.00034874,96469.0,96468.0,0.3367084]
[1734854704637,0.00034874,96469.0,96468.0,0.3327084]
[1734854706513,0.00034874,96469.0,96468.0,0.3377084]
[1734854707162,0.00034874,96469.0,96468.0,0.3387084]
[1734854707374,0.00034874,96469.0,96468.0,0.3337084]
[1734854707762,0.00034874,96469.0,96468.0,0.3387084]
[1734854707953,0.00034874,96469.0,96468.0,0.3337084]
[1734854708306,0.00034874,96469.0,96468.0,0.3791084]
[1734854709526,0.00034874,96469.0,96468.0,0.3871084]
[1734854709871,0.00034874,96469.0,96468.0,0.3861084]
[1734854710411,0.00034874,96469.0,96468.0,0.3881084]
[1734854710764,0.00034874,96469.0,96468.0,0.3791084]
[1734854711097,0.00034874,96469.0,96468.0,0.3921084]
[1734854711284,0.00034874,96469.0,96468.0,0.3831084]
[1734854711715,7e-05,96483.0,96482.0,0.485092]
[1734854711919,7e-05,96483.0,96482.0,0.5864004]
[1734854712514,1e-08,96483.0,96482.0,0.5864004]
[1734854712717,1e-08,96483.0,96482.0,0.60722082]
[1734854713347,1e-08,96483.0,96482.0,0.61622082]
[1734854713658,1e-08,96483.0,96482.0,0.60722082]
[1734854713855,1e-08,96483.0,96482.0,0.61022082]
[1734854714132,8.57e-05,96506.0,96488.0,0.357279]
[1734854714318,8.57e-05,96506.0,96488.0,0.5365874]
[1734854715429,8.57e-05,96506.0,96488.0,1.12189165]
[1734854715557,8.57e-05,96506.0,96500.0,0.2739]
[1734854715751,0.00024888,96506.0,96502.0,0.15]
[1734854715956,0.00024888,96506.0,96505.0,0.15]
[1734854716169,0.00024888,96506.0,96505.0,0.25234446]
[1734854716370,0.00024888,96506.0,96505.0,0.2513084]
[1734854717830,0.00024888,96506.0,96505.0,0.3383084]
[1734854718593,0.00024888,96506.0,96505.0,0.34892637]
[1734854719468,0.00024888,96506.0,96505.0,0.33992637]
[1734854719904,0.00024888,96506.0,96505.0,0.34892637]
[1734854720105,0.00024888,96506.0,96505.0,0.33992637]
[1734854720437,0.00024888,96506.0,96505.0,0.34892637]
[1734854720648,0.00024888,96506.0,96505.0,0.33992637]
[1734854721063,0.00024888,96506.0,96505.0,0.34892637]
[1734854723589,0.00024888,96506.0,96505.0,0.27092637]
[1734854723790,0.00024888,96506.0,96505.0,0.01961797]
[1734854724370,0.00024888,96506.0,96505.0,0.22686097]
[1734854724774,0.00024888,96506.0,96505.0,0.32816937]
[1734854725204,0.00024888,96506.0,96505.0,0.47816937]
[1734854733047,0.00024888,96506.0,96505.0,0.01961797]
[1734854733833,0.00024888,96506.0,96505.0,0.27092637]
[1734854738740,0.00024888,96506.0,96505.0,0.93633062]
[1734854739784,0.00024888,96506.0,96505.0,0.92733062]
[1734854740202,0.00024888,96506.0,96505.0,0.93633062]
[1734854740403,0.00024888,96506.0,96505.0,0.92733062]
[1734854740882,0.00024888,96506.0,96505.0,0.93633062]
[1734854741084,0.00024888,96506.0,96505.0,0.92733062]
[1734854741903,0.01033973,96525.0,96523.0,0.15]
[1734854742074,0.01033973,96525.0,96524.0,0.1013084]
[1734854742437,0.01033973,96525.0,96524.0,0.4585104]
[1734854743414,0.03333973,96525.0,96524.0,0.15]
[1734854743620,0.023,96524.0,96519.0,0.15]
[1734854743826,0.01451623,96524.0,96519.0,0.15]
[1734854744223,0.01033973,96525.0,96519.0,0.15]
[1734854744616,0.01033973,96525.0,96510.0,0.08713864]
[1734854744617,0.01033973,96525.0,96517.0,0.15]
[1734854744823,0.01033973,96525.0,96519.0,0.152]
[1734854746215,0.01033973,96525.0,96519.0,0.15]
[1734854746429,0.01033973,96525.0,96519.0,0.158]
[1734854746963,0.01033973,96525.0,96521.0,0.15]
[1734854747717,0.00460932,96525.0,96521.0,0.15]
[1734854748141,0.00460932,96525.0,96521.0,0.157]